[Event "8th Gibraltar U16-Junior 2018"]
[Site "Caleta"]
[Date "2018.08.17"]
[Round "2"]
[White "Ledesma Claros, Daniel"]
[Black "Ye, Kevin"]
[Result "1-0"]
[ECO "C54"]
[WhiteElo "1954"]
[BlackElo "1653"]
[Annotator "NA RC"]
[PlyCount "79"]
[EventDate "2018.08.17"]
[EventType "swiss"]
[EventCountry "GGB"]
[SourceTitle "playchess.com"]
[Source "ChessBase"]
[SourceQuality "1"]
[TimeControl "6600+10"]

1. e4 {[%emt 0:00:00]} e5 {[%emt 0:00:00]} 2. Nf3 {[%emt 0:00:01]} Nc6 {[%emt 0:00:00]} 3. Bc4 {[%emt 0:00:04]} Bc5 {[%emt 0:00:12]} 4. c3 {[%emt 0:00:05]} Nf6 {[%emt 0:00:07]} 5. d4 {[%emt 0:00:03]} exd4 {[%emt 0:00:04]} 6. cxd4 {[%emt 0:00:04]} Bb4+ {[%emt 0:00:05]} 7. Nc3 {[%emt 0:00:05]} Nxe4 {[%emt 0:00:05]} 8. O-O {[%emt 0:00:03]} Bxc3 {[%emt 0:00:06]} 9. d5 {[%emt 0:00:07]} Bf6 {[%emt 0:00:08]} 10. Re1 {[%emt 0:00:04]} Ne7 {[%emt 0:00:04]} 11. Rxe4 {[%emt 0:00:05]} d6 {[%emt 0:00:04]} 12. Bg5 {[%emt 0:00:05]} Bxg5 {[%emt 0:00:07]} 13. Nxg5 {[%emt 0:00:04]} h6 {[%emt 0:00:10]} 14. Qe2 {[%emt 0:01:41]} hxg5 {[%emt 0:00:41]} 15. Re1 {[%emt 0:00:12]} Be6 {[%emt 0:00:01]} 16. Bb3 {[%emt 0:00:11]} c6 {[%emt 0:01:30]} 17. dxc6 {[%emt 0:00:34]} d5 {[%emt 0:01:29]} 18. Rxe6 {[%emt 0:00:25]} fxe6 {[%emt 0:00:23]} 19. cxb7 {[%emt 0:00:05]} Rb8 {[%emt 0:02:46]} 20. Qxe6 {[%emt 0:00:35]} Qc7 {[%emt 0:09:21]} 21. g3 {[%emt 0:03:52]} Rxb7 {[%emt 0:17:14]} 22. Bxd5 {[%emt 0:02:56]} Rb6 {[%emt 0:01:49]} 23. Qf7+ {[%emt 0:09:08]} Kd8 {[%emt 0:00:20]} 24. Qxg7 {[%emt 0:09:55]} Rbh6 {[%emt 0:02:27]} 25. Be6 {[%emt 0:02:31]} Qd6 {[%emt 0:04:21]} 26. h3 {[%emt 0:06:10]} R8h7 {[%emt 0:15:54]} 27. Qf8+ {[%emt 0:04:55]} Kc7 {[%emt 0:00:19]} 28. Bg4 {[%emt 0:09:05]} Rf6 {[%emt 0:13:58]} 29. Qe8 {[%emt 0:19:58]} Qc5 {[%emt 0:02:26]} 30. Qd7+ {[%emt 0:05:10]} Kb8 {[%emt 0:01:51]} 31. Qd8+ {[%emt 0:01:34]} Kb7 {[%emt 0:00:02]} 32. Qd7+ {[%emt 0:17:14]} Ka6 {[%emt 0:20:58]} 33. Re3 {[%emt 0:07:23]} Nd5 {[%emt 0:06:37]} 34. Be2+ {[%emt 0:03:58]} Ka5 {[%emt 0:04:27]} 35. b4+ {[%emt 0:00:58]} Kxb4 {[%emt 0:01:20]} 36. Rb3+ {[%emt 0:00:17]} Ka5 {[%emt 0:00:23]} 37. Rb5+ {[%emt 0:00:15]} Ka4 {[%emt 0:00:30]} 38. Bd1+ {[%emt 0:02:21]} Ka3 {[%emt 0:00:13]} 39. Rb3+ {[%emt 0:00:32]} Kxa2 {[%emt 0:00:55]} 40. Qa4+ {[%emt 0:00:17]} 1-0

[Event "8th Gibraltar U16-Junior 2018"]
[Site "Caleta"]
[Date "2018.08.17"]
[Round "2"]
[White "Samworth Calvier, Juju"]
[Black "Weersing, Sarah"]
[Result "1/2-1/2"]
[ECO "C14"]
[WhiteElo "1816"]
[BlackElo "1608"]
[Annotator "NA RC"]
[PlyCount "36"]
[EventDate "2018.08.17"]
[EventType "swiss"]
[EventCountry "GGB"]
[SourceTitle "playchess.com"]
[Source "ChessBase"]
[SourceQuality "1"]
[TimeControl "6600+10"]

1. e4 {[%emt 0:00:00]} e6 {[%emt 0:00:00]} 2. d4 {[%emt 0:00:01]} d5 {[%emt 0:00:02]} 3. Nc3 {[%emt 0:00:30]} Nf6 {[%emt 0:00:39]} 4. Bg5 {[%emt 0:01:25]} Be7 {[%emt 0:00:19]} 5. exd5 {[%emt 0:02:29]} Nxd5 {[%emt 0:02:17]} 6. Bxe7 {[%emt 0:02:11]} Qxe7 {[%emt 0:02:52]} 7. Bd3 {[%emt 0:01:29]} Qb4 {[%emt 0:04:54]} 8. Nge2 {[%emt 0:07:28]} Qxb2 {[%emt 0:07:16]} 9. Rb1 {[%emt 0:01:05]} Nxc3 {[%emt 0:02:04]} 10. Rxb2 {[%emt 0:00:09]} Nxd1 {[%emt 0:00:12]} 11. Kxd1 {[%emt 0:00:04]} b6 {[%emt 0:06:33]} 12. Be4 {[%emt 0:02:55]} c6 {[%emt 0:00:18]} 13. Nc3 {[%emt 0:00:37]} Bd7 {[%emt 0:04:23]} 14. Re1 {[%emt 0:23:16]} O-O {[%emt 0:02:41]} 15. Nb5 {[%emt 0:06:22]} Na6 {[%emt 0:01:28]} 16. c4 {[%emt 0:00:29]} Rac8 {[%emt 0:02:12]} 17. Nd6 {[%emt 0:02:45]} Rc7 {[%emt 0:01:45]} 18. Re3 {[%emt 0:08:03]} Rd8 {[%emt 0:04:48]} 1/2-1/2

[Event "8th Gibraltar U16-Junior 2018"]
[Site "Caleta"]
[Date "2018.08.17"]
[Round "2"]
[White "Patel, Devan"]
[Black "Moreby, James"]
[Result "0-1"]
[ECO "E94"]
[WhiteElo "1716"]
[BlackElo "2084"]
[Annotator "NA RC"]
[PlyCount "56"]
[EventDate "2018.08.17"]
[EventType "swiss"]
[EventCountry "GGB"]
[SourceTitle "playchess.com"]
[Source "ChessBase"]
[SourceQuality "1"]
[TimeControl "6600+10"]

1. d4 {[%emt 0:00:05]} Nf6 {[%emt 0:00:00]} 2. Nf3 {[%emt 0:00:10]} g6 {[%emt 0:00:00]} 3. c4 {[%emt 0:00:18]} Bg7 {[%emt 0:00:40]} 4. Nc3 {[%emt 0:00:12]} O-O {[%emt 0:00:56]} 5. e4 {[%emt 0:00:13]} d6 {[%emt 0:00:03]} 6. Be2 {[%emt 0:00:09]} Qe8 {[%emt 0:00:04]} 7. O-O {[%emt 0:04:17]} e5 {[%emt 0:00:01]} 8. dxe5 {[%emt 0:04:21]} dxe5 {[%emt 0:00:02]} 9. Qc2 {[%emt 0:10:43]} c6 {[%emt 0:03:35]} 10. b3 {[%emt 0:05:23]} Qe7 {[%emt 0:00:41]} 11. a4 {[%emt 0:11:34]} Na6 {[%emt 0:06:42]} 12. Ba3 {[%emt 0:03:39]} Nb4 {[%emt 0:00:01]} 13. Qd2 {[%emt 0:03:50]} a5 {[%emt 0:00:41]} 14. Rad1 {[%emt 0:08:12]} Bg4 {[%emt 0:01:45]} 15. Qd6 {[%emt 0:07:07]} Qxd6 {[%emt 0:01:01]} 16. Rxd6 {[%emt 0:00:23]} Nc2 {[%emt 0:01:16]} 17. Bb2 {[%emt 0:07:06]} Bxf3 {[%emt 0:00:30]} 18. Bxf3 {[%emt 0:00:38]} Nd4 {[%emt 0:00:02]} 19. Bd1 {[%emt 0:08:53]} Rfc8 {[%emt 0:07:16]} 20. f4 {[%emt 0:05:34]} Ne8 {[%emt 0:08:42]} 21. Rd7 {[%emt 0:01:21]} Rc7 {[%emt 0:00:26]} 22. Rxc7 {[%emt 0:00:34]} Nxc7 {[%emt 0:00:01]} 23. Ne2 {[%emt 0:04:03]} Nxe2+ {[%emt 0:00:31]} 24. Bxe2 {[%emt 0:00:05]} exf4 {[%emt 0:00:12]} 25. Bxg7 {[%emt 0:00:17]} Kxg7 {[%emt 0:00:01]} 26. Rxf4 {[%emt 0:00:02]} Ne6 {[%emt 0:00:01]} 27. Rf3 {[%emt 0:02:48]} Rd8 {[%emt 0:01:07]} 28. Bd3 {[%emt 0:07:19]} Nd4 {[%emt 0:00:16]} 0-1

[Event "8th Gibraltar U16-Junior 2018"]
[Site "Caleta"]
[Date "2018.08.17"]
[Round "2"]
[White "Cortes Villa, Jaime"]
[Black "Diaz Mino, Pablo"]
[Result "0-1"]
[ECO "C68"]
[WhiteElo "1700"]
[BlackElo "2052"]
[Annotator "NA RC"]
[PlyCount "44"]
[EventDate "2018.08.17"]
[EventType "swiss"]
[EventCountry "GGB"]
[SourceTitle "playchess.com"]
[Source "ChessBase"]
[SourceQuality "1"]
[TimeControl "6600+10"]

1. e4 {[%emt 0:00:00]} e5 {[%emt 0:00:03]} 2. Nf3 {[%emt 0:00:00]} Nc6 {[%emt 0:00:07]} 3. Bb5 {[%emt 0:00:05]} a6 {[%emt 0:00:12]} 4. Bxc6 {[%emt 0:00:05]} dxc6 {[%emt 0:00:08]} 5. d4 {[%emt 0:00:05]} exd4 {[%emt 0:03:22]} 6. Qxd4 {[%emt 0:00:09]} Qxd4 {[%emt 0:00:07]} 7. Nxd4 {[%emt 0:00:05]} Bd6 {[%emt 0:05:31]} 8. Be3 {[%emt 0:01:38]} Ne7 {[%emt 0:00:34]} 9. Nd2 {[%emt 0:02:43]} f5 {[%emt 0:06:50]} 10. Nxf5 {[%emt 0:01:46]} Nxf5 {[%emt 0:05:18]} 11. exf5 {[%emt 0:00:07]} Bxf5 {[%emt 0:00:06]} 12. O-O-O {[%emt 0:00:08]} O-O-O {[%emt 0:05:40]} 13. h3 {[%emt 0:11:36]} Be6 {[%emt 0:07:54]} 14. Rhe1 {[%emt 0:13:05]} Bxa2 {[%emt 0:08:57]} 15. Bd4 {[%emt 0:11:37]} Bd5 {[%emt 0:00:29]} 16. c4 {[%emt 0:02:14]} Bxg2 {[%emt 0:02:03]} 17. Rg1 {[%emt 0:00:06]} Bxh3 {[%emt 0:00:30]} 18. Rxg7 {[%emt 0:08:54]} Bf8 {[%emt 0:04:59]} 19. Rg3 {[%emt 0:00:13]} Rxd4 {[%emt 0:00:18]} 20. Rxh3 {[%emt 0:00:07]} Bb4 {[%emt 0:00:30]} 21. Nb3 {[%emt 0:04:51]} Rxc4+ {[%emt 0:00:15]} 22. Kb1 {[%emt 0:00:05]} Rf4 {[%emt 0:00:25]} 0-1

[Event "8th Gibraltar U16-Junior 2018"]
[Site "Caleta"]
[Date "2018.08.17"]
[Round "2"]
[White "Onslow, Teddy"]
[Black "Perez Beltran, Salvador"]
[Result "1/2-1/2"]
[ECO "D00"]
[WhiteElo "1669"]
[BlackElo "2018"]
[Annotator "NA RC"]
[PlyCount "37"]
[EventDate "2018.08.17"]
[EventType "swiss"]
[EventCountry "GGB"]
[SourceTitle "playchess.com"]
[Source "ChessBase"]
[SourceQuality "1"]
[TimeControl "6600+10"]

1. d4 {[%emt 0:00:00]} d5 {[%emt 0:00:00]} 2. Bf4 {[%emt 0:00:00]} Nf6 {[%emt 0:00:03]} 3. e3 {[%emt 0:00:05]} e6 {[%emt 0:00:04]} 4. Bd3 {[%emt 0:00:05]} c5 {[%emt 0:00:05]} 5. c3 {[%emt 0:00:04]} Nc6 {[%emt 0:00:09]} 6. Nd2 {[%emt 0:00:05]} Bd6 {[%emt 0:04:03]} 7. Bxd6 {[%emt 0:00:21]} Qxd6 {[%emt 0:00:09]} 8. f4 {[%emt 0:00:06]} O-O {[%emt 0:02:18]} 9. Ngf3 {[%emt 0:00:06]} b6 {[%emt 0:02:10]} 10. O-O {[%emt 0:00:20]} Bb7 {[%emt 0:11:39]} 11. Ne5 {[%emt 0:01:12]} Ne7 {[%emt 0:03:04]} 12. Qf3 {[%emt 0:09:28]} Nd7 {[%emt 0:09:07]} 13. Qh3 {[%emt 0:03:26]} f5 {[%emt 0:10:41]} 14. Ndf3 {[%emt 0:04:47]} Nf6 {[%emt 0:05:50]} 15. g4 {[%emt 0:02:23]} fxg4 {[%emt 0:04:13]} 16. Nxg4 {[%emt 0:00:39]} Nf5 {[%emt 0:00:46]} 17. Kh1 {[%emt 0:11:53]} Nxg4 {[%emt 0:02:24]} 18. Qxg4 {[%emt 0:00:07]} Rf6 {[%emt 0:11:21]} 19. Ne5 {[%emt 0:02:30]} 1/2-1/2

[Event "8th Gibraltar U16-Junior 2018"]
[Site "Caleta"]
[Date "2018.08.17"]
[Round "2"]
[White "Krivenko, Dion"]
[Black "Silva, Pedro Gil Ferreira "]
[Result "0-1"]
[ECO "B17"]
[WhiteElo "1635"]
[BlackElo "1795"]
[Annotator "NA RC"]
[PlyCount "96"]
[EventDate "2018.08.17"]
[EventType "swiss"]
[EventCountry "GGB"]
[SourceTitle "playchess.com"]
[Source "ChessBase"]
[SourceQuality "1"]
[TimeControl "6600+10"]

1. e4 {[%emt 0:00:00]} c6 {[%emt 0:00:00]} 2. d4 {[%emt 0:00:00]} d5 {[%emt 0:00:05]} 3. Nc3 {[%emt 0:00:11]} dxe4 {[%emt 0:00:27]} 4. Nxe4 {[%emt 0:00:07]} Nd7 {[%emt 0:00:50]} 5. Nf3 {[%emt 0:00:19]} Ngf6 {[%emt 0:00:31]} 6. Ng3 {[%emt 0:00:06]} e6 {[%emt 0:00:32]} 7. Bd3 {[%emt 0:00:07]} c5 {[%emt 0:00:17]} 8. O-O {[%emt 0:01:04]} cxd4 {[%emt 0:00:29]} 9. Nxd4 {[%emt 0:00:31]} Bc5 {[%emt 0:00:22]} 10. Nb3 {[%emt 0:00:17]} Be7 {[%emt 0:00:28]} 11. Re1 {[%emt 0:00:42]} O-O {[%emt 0:01:00]} 12. Qf3 {[%emt 0:00:17]} h6 {[%emt 0:10:46]} 13. Bd2 {[%emt 0:07:02]} Bd6 {[%emt 0:14:24]} 14. Ne4 {[%emt 0:10:19]} Bc7 {[%emt 0:02:04]} 15. Nxf6+ {[%emt 0:01:17]} Nxf6 {[%emt 0:00:05]} 16. Rad1 {[%emt 0:02:27]} Qd6 {[%emt 0:13:33]} 17. g3 {[%emt 0:06:25]} e5 {[%emt 0:16:21]} 18. a3 {[%emt 0:07:28]} Bg4 {[%emt 0:03:08]} 19. Qxb7 {[%emt 0:02:31]} Rfb8 {[%emt 0:04:36]} 20. Qg2 {[%emt 0:03:00]} Bxd1 {[%emt 0:00:18]} 21. Rxd1 {[%emt 0:00:31]} Re8 {[%emt 0:03:38]} 22. Bb4 {[%emt 0:03:10]} Qe6 {[%emt 0:02:12]} 23. Nc5 {[%emt 0:08:57]} Qg4 {[%emt 0:13:22]} 24. Re1 {[%emt 0:01:29]} Bb6 {[%emt 0:05:10]} 25. Ne4 {[%emt 0:05:59]} Nd5 {[%emt 0:03:58]} 26. Nd6 {[%emt 0:06:52]} Nxb4 {[%emt 0:04:11]} 27. Be2 {[%emt 0:06:42]} Qd4 {[%emt 0:05:09]} 28. Nxe8 {[%emt 0:03:57]} Rxe8 {[%emt 0:01:32]} 29. Rd1 {[%emt 0:10:38]} Qxb2 {[%emt 0:00:55]} 30. axb4 {[%emt 0:00:15]} Qxc2 {[%emt 0:00:15]} 31. Qf1 {[%emt 0:01:02]} e4 {[%emt 0:01:09]} 32. Rc1 {[%emt 0:02:47]} Qb2 {[%emt 0:00:15]} 33. Qe1 {[%emt 0:03:53]} e3 {[%emt 0:00:37]} 34. f3 {[%emt 0:00:04]} Qd2 {[%emt 0:00:10]} 35. Kf1 {[%emt 0:01:00]} Qd5 {[%emt 0:00:37]} 36. Qd1 {[%emt 0:02:31]} Qh5 {[%emt 0:00:30]} 37. Kg2 {[%emt 0:01:05]} Rd8 {[%emt 0:00:21]} 38. Qb3 {[%emt 0:05:39]} Rd2 {[%emt 0:00:32]} 39. Re1 {[%emt 0:01:56]} Qb5 {[%emt 0:00:30]} 40. Kf1 {[%emt 0:00:30]} Qf5 {[%emt 0:00:08]} 41. Qc4 {[%emt 0:00:36]} Qh3+ {[%emt 0:00:12]} 42. Kg1 {[%emt 0:00:05]} h5 {[%emt 0:00:06]} 43. g4 {[%emt 0:01:04]} Qh4 {[%emt 0:00:06]} 44. Rf1 {[%emt 0:01:07]} Rd4 {[%emt 0:00:21]} 45. Qc8+ {[%emt 0:00:32]} Rd8 {[%emt 0:00:02]} 46. Qc4 {[%emt 0:00:06]} g6 {[%emt 0:00:21]} 47. gxh5 {[%emt 0:00:22]} Qxc4 {[%emt 0:00:02]} 48. Bxc4 {[%emt 0:00:02]} e2+ {[%emt 0:00:01]} 0-1

[Event "8th Gibraltar U16-Junior 2018"]
[Site "Caleta"]
[Date "2018.08.17"]
[Round "2"]
[White "Greco, Joseph"]
[Black "Gough, Theo"]
[Result "0-1"]
[ECO "A06"]
[WhiteElo "1626"]
[BlackElo "1346"]
[Annotator "NA RC"]
[PlyCount "168"]
[EventDate "2018.08.17"]
[EventType "swiss"]
[EventCountry "GGB"]
[SourceTitle "playchess.com"]
[Source "ChessBase"]
[SourceQuality "1"]
[TimeControl "6600+10"]

1. Nf3 {[%emt 0:00:00]} Nf6 {[%emt 0:00:09]} 2. b3 {[%emt 0:00:45]} d5 {[%emt 0:00:45]} 3. Bb2 {[%emt 0:00:09]} c5 {[%emt 0:00:50]} 4. e3 {[%emt 0:00:51]} Nbd7 {[%emt 0:00:47]} 5. c4 {[%emt 0:00:39]} e6 {[%emt 0:00:24]} 6. Be2 {[%emt 0:05:57]} Bd6 {[%emt 0:01:39]} 7. Nc3 {[%emt 0:03:56]} O-O {[%emt 0:02:05]} 8. O-O {[%emt 0:00:38]} b6 {[%emt 0:01:35]} 9. Re1 {[%emt 0:04:03]} Bb7 {[%emt 0:01:15]} 10. Qc2 {[%emt 0:02:45]} a6 {[%emt 0:05:37]} 11. d3 {[%emt 0:04:58]} Qc7 {[%emt 0:03:47]} 12. h3 {[%emt 0:03:01]} Rad8 {[%emt 0:02:04]} 13. Rad1 {[%emt 0:02:28]} Rfe8 {[%emt 0:01:33]} 14. a4 {[%emt 0:01:48]} Ne5 {[%emt 0:02:37]} 15. Nxe5 {[%emt 0:12:14]} Bxe5 {[%emt 0:00:20]} 16. f4 {[%emt 0:01:59]} Bd6 {[%emt 0:00:40]} 17. Bf3 {[%emt 0:10:56]} d4 {[%emt 0:04:02]} 18. Bxb7 {[%emt 0:01:42]} dxc3 {[%emt 0:00:27]} 19. Bxa6 {[%emt 0:03:41]} cxb2 {[%emt 0:00:10]} 20. Qxb2 {[%emt 0:00:19]} e5 {[%emt 0:02:03]} 21. Bb5 {[%emt 0:00:44]} Re7 {[%emt 0:01:20]} 22. g3 {[%emt 0:01:53]} Qc8 {[%emt 0:03:11]} 23. Qg2 {[%emt 0:02:32]} exf4 {[%emt 0:02:04]} 24. exf4 {[%emt 0:01:30]} Qa8 {[%emt 0:05:47]} 25. Qxa8 {[%emt 0:02:01]} Rxa8 {[%emt 0:00:53]} 26. Kg2 {[%emt 0:00:28]} Raa7 {[%emt 0:02:28]} 27. Bc6 {[%emt 0:02:40]} Kf8 {[%emt 0:02:45]} 28. d4 {[%emt 0:01:30]} Rxe1 {[%emt 0:01:27]} 29. Rxe1 {[%emt 0:00:06]} cxd4 {[%emt 0:00:21]} 30. Rd1 {[%emt 0:00:52]} Bc5 {[%emt 0:01:17]} 31. b4 {[%emt 0:01:09]} Bxb4 {[%emt 0:00:30]} 32. Rxd4 {[%emt 0:00:06]} Bc5 {[%emt 0:00:21]} 33. Rd2 {[%emt 0:00:49]} Rc7 {[%emt 0:02:47]} 34. Bb5 {[%emt 0:00:32]} g6 {[%emt 0:02:29]} 35. Kf3 {[%emt 0:01:10]} Re7 {[%emt 0:00:25]} 36. Rd3 {[%emt 0:00:47]} Ne4 {[%emt 0:00:44]} 37. Rd8+ {[%emt 0:03:24]} Kg7 {[%emt 0:00:12]} 38. Re8 {[%emt 0:04:35]} Rxe8 {[%emt 0:00:31]} 39. Bxe8 {[%emt 0:00:20]} Nd2+ {[%emt 0:00:01]} 40. Ke2 {[%emt 0:00:32]} Nxc4 {[%emt 0:00:10]} 41. Kd3 {[%emt 0:00:18]} Nd6 {[%emt 0:00:48]} 42. Bd7 {[%emt 0:00:27]} f5 {[%emt 0:00:41]} 43. g4 {[%emt 0:00:33]} fxg4 {[%emt 0:00:24]} 44. hxg4 {[%emt 0:00:06]} Kf6 {[%emt 0:00:09]} 45. g5+ {[%emt 0:00:33]} Kg7 {[%emt 0:01:05]} 46. Be6 {[%emt 0:01:24]} Nf5 {[%emt 0:01:28]} 47. Ke4 {[%emt 0:01:48]} Nd4 {[%emt 0:01:02]} 48. Bc4 {[%emt 0:01:12]} Nf5 {[%emt 0:00:48]} 49. Be6 {[%emt 0:00:50]} Nd6+ {[%emt 0:01:27]} 50. Kd5 {[%emt 0:00:56]} Nf7 {[%emt 0:01:20]} 51. Ke4 {[%emt 0:00:34]} Bd6 {[%emt 0:00:42]} 52. Kf3 {[%emt 0:01:43]} Nd8 {[%emt 0:00:24]} 53. Bd5 {[%emt 0:00:19]} Nf7 {[%emt 0:01:28]} 54. Ke4 {[%emt 0:00:50]} Bc7 {[%emt 0:00:15]} 55. Be6 {[%emt 0:01:22]} Nd6+ {[%emt 0:00:21]} 56. Kd4 {[%emt 0:00:18]} Nf5+ {[%emt 0:00:47]} 57. Ke4 {[%emt 0:00:33]} Ng3+ {[%emt 0:01:09]} 58. Kf3 {[%emt 0:00:40]} Nf1 {[%emt 0:00:19]} 59. f5 {[%emt 0:01:54]} Nd2+ {[%emt 0:00:53]} 60. Ke3 {[%emt 0:00:45]} Nf1+ {[%emt 0:01:08]} 61. Kf2 {[%emt 0:00:22]} Ng3 {[%emt 0:00:11]} 62. f6+ {[%emt 0:02:20]} Kf8 {[%emt 0:00:07]} 63. Kf3 {[%emt 0:01:05]} Nf5 {[%emt 0:00:32]} 64. Ke4 {[%emt 0:00:58]} Nd6+ {[%emt 0:01:00]} 65. Kd5 {[%emt 0:00:25]} Nf7 {[%emt 0:00:18]} 66. Kc6 {[%emt 0:02:19]} Be5 {[%emt 0:00:22]} 67. Kxb6 {[%emt 0:02:48]} Nxg5 {[%emt 0:00:08]} 68. Bg4 {[%emt 0:00:19]} Bxf6 {[%emt 0:00:07]} 69. Kc5 {[%emt 0:00:32]} Bd8 {[%emt 0:00:26]} 70. Kd5 {[%emt 0:00:05]} Kg7 {[%emt 0:00:37]} 71. Kd4 {[%emt 0:00:25]} Kf6 {[%emt 0:00:10]} 72. Ke3 {[%emt 0:00:19]} Ne6 {[%emt 0:00:25]} 73. Bd1 {[%emt 0:00:51]} h5 {[%emt 0:00:16]} 74. Kf3 {[%emt 0:00:05]} Kg5 {[%emt 0:00:52]} 75. Kg3 {[%emt 0:00:10]} h4+ {[%emt 0:00:19]} 76. Kg2 {[%emt 0:00:15]} Kf4 {[%emt 0:00:06]} 77. Bb3 {[%emt 0:00:23]} Nc5 {[%emt 0:00:12]} 78. Bc2 {[%emt 0:00:07]} g5 {[%emt 0:00:06]} 79. Bd1 {[%emt 0:00:29]} g4 {[%emt 0:00:03]} 80. Kh2 {[%emt 0:00:11]} Ne4 {[%emt 0:00:32]} 81. Be2 {[%emt 0:00:22]} Bc7 {[%emt 0:00:14]} 82. Kg2 {[%emt 0:00:20]} h3+ {[%emt 0:00:15]} 83. Kg1 {[%emt 0:00:15]} Kg3 {[%emt 0:00:17]} 84. a5 {[%emt 0:00:41]} h2+ {[%emt 0:00:16]} 0-1

[Event "8th Gibraltar U16-Junior 2018"]
[Site "Caleta"]
[Date "2018.08.17"]
[Round "2"]
[White "Headlong, Benjamin"]
[Black "Dhanwani, Aryan"]
[Result "1-0"]
[ECO "B12"]
[WhiteElo "1597"]
[BlackElo "1169"]
[Annotator "NA RC"]
[PlyCount "115"]
[EventDate "2018.08.17"]
[EventType "swiss"]
[EventCountry "GGB"]
[SourceTitle "playchess.com"]
[Source "ChessBase"]
[SourceQuality "1"]
[TimeControl "6600+10"]

1. e4 {[%emt 0:00:00]} c6 {[%emt 0:00:09]} 2. Nc3 {[%emt 0:01:15]} d5 {[%emt 0:00:31]} 3. e5 {[%emt 0:00:56]} Bf5 {[%emt 0:00:40]} 4. Nf3 {[%emt 0:01:00]} e6 {[%emt 0:01:42]} 5. d4 {[%emt 0:00:39]} c5 {[%emt 0:01:37]} 6. Be3 {[%emt 0:00:54]} Nd7 {[%emt 0:10:18]} 7. Bb5 {[%emt 0:02:14]} c4 {[%emt 0:02:42]} 8. Bxd7+ {[%emt 0:01:06]} Qxd7 {[%emt 0:00:13]} 9. Nh4 {[%emt 0:00:11]} Bb4 {[%emt 0:06:07]} 10. Bd2 {[%emt 0:00:48]} Ne7 {[%emt 0:02:28]} 11. a3 {[%emt 0:01:04]} Ba5 {[%emt 0:01:06]} 12. Ne2 {[%emt 0:00:50]} Qb5 {[%emt 0:10:34]} 13. Bxa5 {[%emt 0:01:42]} Qxa5+ {[%emt 0:01:33]} 14. Qd2 {[%emt 0:00:27]} Qxd2+ {[%emt 0:00:19]} 15. Kxd2 {[%emt 0:00:06]} g5 {[%emt 0:00:28]} 16. Nxf5 {[%emt 0:00:31]} Nxf5 {[%emt 0:00:09]} 17. c3 {[%emt 0:00:12]} Ke7 {[%emt 0:04:07]} 18. f4 {[%emt 0:03:57]} g4 {[%emt 0:07:54]} 19. h3 {[%emt 0:02:17]} h5 {[%emt 0:01:19]} 20. hxg4 {[%emt 0:00:34]} hxg4 {[%emt 0:00:11]} 21. g3 {[%emt 0:00:47]} b5 {[%emt 0:06:06]} 22. Kc2 {[%emt 0:01:56]} Ne3+ {[%emt 0:02:53]} 23. Kd2 {[%emt 0:00:39]} Nf5 {[%emt 0:00:40]} 24. Rag1 {[%emt 0:01:12]} a5 {[%emt 0:01:22]} 25. Ke1 {[%emt 0:07:08]} Rag8 {[%emt 0:02:08]} 26. Kd1 {[%emt 0:13:32]} Rh3 {[%emt 0:07:52]} 27. Rxh3 {[%emt 0:19:46]} gxh3 {[%emt 0:00:13]} 28. Ke1 {[%emt 0:05:58]} h2 {[%emt 0:05:16]} 29. Rh1 {[%emt 0:00:55]} Nxg3 {[%emt 0:02:04]} 30. Rxh2 {[%emt 0:00:56]} Nf5 {[%emt 0:02:36]} 31. Kf2 {[%emt 0:01:47]} b4 {[%emt 0:01:42]} 32. Rh1 {[%emt 0:04:50]} b3 {[%emt 0:01:18]} 33. Rh3 {[%emt 0:01:09]} a4 {[%emt 0:01:56]} 34. Ng3 {[%emt 0:01:44]} Nxg3 {[%emt 0:00:22]} 35. Rxg3 {[%emt 0:00:05]} Rxg3 {[%emt 0:01:45]} 36. Kxg3 {[%emt 0:00:07]} f5 {[%emt 0:00:14]} 37. Kh4 {[%emt 0:01:16]} Kf8 {[%emt 0:12:49]} 38. Kh5 {[%emt 0:00:55]} Kf7 {[%emt 0:00:49]} 39. Kh6 {[%emt 0:00:22]} Kg8 {[%emt 0:01:38]} 40. Kg6 {[%emt 0:00:25]} Kh8 {[%emt 0:00:13]} 41. Kf6 {[%emt 0:00:14]} Kh7 {[%emt 0:00:22]} 42. Kxe6 {[%emt 0:00:39]} Kg6 {[%emt 0:00:16]} 43. Kd7 {[%emt 0:00:39]} Kh5 {[%emt 0:01:02]} 44. e6 {[%emt 0:00:09]} Kg4 {[%emt 0:00:09]} 45. e7 {[%emt 0:00:10]} Kxf4 {[%emt 0:00:04]} 46. e8=Q {[%emt 0:00:11]} Kf3 {[%emt 0:00:54]} 47. Qe1 {[%emt 0:00:50]} f4 {[%emt 0:00:18]} 48. Qf1+ {[%emt 0:01:25]} Ke3 {[%emt 0:00:16]} 49. Kd6 {[%emt 0:00:33]} f3 {[%emt 0:01:25]} 50. Kxd5 {[%emt 0:00:32]} Kd2 {[%emt 0:00:15]} 51. Qxf3 {[%emt 0:00:50]} Kc2 {[%emt 0:00:28]} 52. Qe2+ {[%emt 0:00:28]} Kb1 {[%emt 0:00:06]} 53. Kxc4 {[%emt 0:00:49]} Ka2 {[%emt 0:00:14]} 54. Kb4 {[%emt 0:00:29]} Kb1 {[%emt 0:00:59]} 55. Kxa4 {[%emt 0:00:29]} Ka2 {[%emt 0:00:36]} 56. c4 {[%emt 0:00:28]} Ka1 {[%emt 0:00:26]} 57. Kxb3 {[%emt 0:00:32]} Kb1 {[%emt 0:00:09]} 58. Qd1# {[%emt 0:00:22]} 1-0

[Event "8th Gibraltar U16-Junior 2018"]
[Site "Caleta"]
[Date "2018.08.17"]
[Round "2"]
[White "Guerreiro, Jose Velho"]
[Black "Harbinson, Alec Ryan"]
[Result "1-0"]
[ECO "D43"]
[WhiteElo "1525"]
[BlackElo "1043"]
[Annotator "NA RC"]
[PlyCount "69"]
[EventDate "2018.08.17"]
[EventType "swiss"]
[EventCountry "GGB"]
[SourceTitle "playchess.com"]
[Source "ChessBase"]
[SourceQuality "1"]
[TimeControl "6600+10"]

1. d4 {[%emt 0:00:00]} d5 {[%emt 0:00:00]} 2. c4 {[%emt 0:00:04]} e6 {[%emt 0:00:07]} 3. Nc3 {[%emt 0:00:08]} c6 {[%emt 0:00:24]} 4. c5 {[%emt 0:00:14]} Nf6 {[%emt 0:00:32]} 5. Nf3 {[%emt 0:00:18]} g6 {[%emt 0:00:49]} 6. Bg5 {[%emt 0:00:44]} Bg7 {[%emt 0:01:21]} 7. e3 {[%emt 0:00:15]} b6 {[%emt 0:00:50]} 8. b4 {[%emt 0:01:23]} Nbd7 {[%emt 0:00:51]} 9. Bd3 {[%emt 0:01:57]} Qc7 {[%emt 0:01:11]} 10. Bf4 {[%emt 0:01:09]} Qd8 {[%emt 0:01:32]} 11. O-O {[%emt 0:00:33]} O-O {[%emt 0:00:47]} 12. Bg5 {[%emt 0:03:15]} Qc7 {[%emt 0:01:11]} 13. Bf4 {[%emt 0:00:36]} Qd8 {[%emt 0:00:21]} 14. h3 {[%emt 0:00:18]} Re8 {[%emt 0:02:13]} 15. Ne5 {[%emt 0:02:24]} Nxe5 {[%emt 0:00:52]} 16. Bxe5 {[%emt 0:00:12]} Nd7 {[%emt 0:00:41]} 17. Bh2 {[%emt 0:05:47]} e5 {[%emt 0:02:01]} 18. Bc2 {[%emt 0:02:38]} exd4 {[%emt 0:03:31]} 19. exd4 {[%emt 0:00:27]} bxc5 {[%emt 0:00:24]} 20. bxc5 {[%emt 0:00:28]} Nxc5 {[%emt 0:00:39]} 21. dxc5 {[%emt 0:03:41]} Bxc3 {[%emt 0:00:14]} 22. Rb1 {[%emt 0:00:37]} Qa5 {[%emt 0:05:44]} 23. Bd6 {[%emt 0:05:04]} Qxa2 {[%emt 0:04:07]} 24. Bb3 {[%emt 0:01:34]} Qa5 {[%emt 0:01:39]} 25. Qf3 {[%emt 0:01:44]} Re1 {[%emt 0:06:54]} 26. Rfxe1 {[%emt 0:02:42]} Bxe1 {[%emt 0:00:11]} 27. Qe3 {[%emt 0:00:54]} Bc3 {[%emt 0:14:32]} 28. Qe8+ {[%emt 0:03:23]} Kg7 {[%emt 0:00:20]} 29. Qxc6 {[%emt 0:04:03]} Bf5 {[%emt 0:01:41]} 30. Qxa8 {[%emt 0:00:22]} Bxb1 {[%emt 0:01:07]} 31. Qxd5 {[%emt 0:01:11]} f5 {[%emt 0:01:52]} 32. Qf7+ {[%emt 0:01:49]} Kh6 {[%emt 0:00:15]} 33. Bf8+ {[%emt 0:02:36]} Kg5 {[%emt 0:00:23]} 34. Qe7+ {[%emt 0:00:39]} Kh5 {[%emt 0:03:33]} 35. Bd1# {[%emt 0:00:54]} 1-0